Workbook

Sheet раскл 1-3 н
C1: Меню-раскладка к примерному 10-дневному меню
C2: для организации питания детей в дошкольных образовательных учреждениях
C3: от 1-3 лет
A5: День 1 - ый
A6: Прием пищи | C6: Выход блюда | D6: Кол - во | E6: Кол - во | F6: № рецептуры
A7: Наименование блюд | D7: (в гр ) | E7: (в гр )
D8: брутто | E8: нетто
B9: ЗАВТРАК
A10: Каша дружба молочная с маслом | C10: 150/3 | F10: ТТК №7
B11: Крупа рисовая | D11: 11.00 | E11: 11.00
B12: Крупа пшенная | D12: 8.00 | E12: 8.00
B13: Вода | D13: 65.00 | E13: 65.00
B14: Молоко | D14: 65.00 | E14: 65.00
B15: Сахар | D15: 0.75 | E15: 0.75
B16: Соль | D16: 0.50 | E16: 0.50
B17: Масло сливочное | D17: 3.00 | E17: 3.00
A18: Чай с сахаром | C18: 160/4 | F18: № 411 Дели2016
B19: Заварка | D19: 0.2 | E19: 0.2
B20: Сахар | D20: 4 | E20: 4
B21: Вода | D21: 160 | E21: 160
A22: Бутерброд с маслом сливочным | C22: 25/5 | F22: №1 Дели2010
B23: Батон нарезной | D23: 25 | E23: 25
B24: Масло сливочное | D24: 5 | E24: 5
A25: Итого: | C25: 347
A26: Сок | C26: 125 | D26: 125 | E26: 125 | F26: №418Дели2016
A28: Итого: | C28: 125
C29: 472
B30: ОБЕД
A31: Морковь отварная | C31: 30 | F31: стр562,1996
B32: Морковь | D32: 40.30 | E32: 30.30
A33: Суп вермишелевый с картофелем и курицей | C33: 150/10 | F33: №88 Дели 2016
B34: цыплята | D34: 22.61 | E34: 14.7
B35: Картофель | D35: 64.35 | E35: 45.0
B36: Морковь | D36: 7.5 | E36: 6.0
B37: Лук репчатый | D37: 7.1 | E37: 6.0
B38: Вермишель | D38: 6.0 | E38: 6.0
B39: Масло растительное | D39: 1.8 | E39: 1.8
B40: Соль | D40: 0.5 | E40: 0.5
B41: Вода | D41: 114.0 | E41: 114.0
A42: Тефтели из говядины паровые | C42: 50 | F42: ТТК № 1152 от 09.10.2020
B43: фарш из говядины | D43: 34.3 | E43: 34.3
B44: Хлеб пшеничный 1с | D44: 4 | E44: 4
B45: Вода | D45: 4 | E45: 4
B46: Лук репчатый | D46: 10.2 | E46: 8.6
B47: Крупа манная | D47: 2 | E47: 2
B48: Соль | D48: 0.3 | E48: 0.3
B49: Масло растительное | D49: 1 | E49: 1
A50: Каша гречневая вязкая | C50: 110/2,5 | F50: №182,Дели 2016
B51: Крупа гречневая | D51: 27.50 | E51: 27.50
B52: Вода | D52: 91.30 | E52: 91.30
B53: Масло сливочное | D53: 2.50 | E53: 2.50
B54: Соль | D54: 0.40 | E54: 0.40
A55: Кисель | C55: 150 | F55: №284Партнер2014
B56: Кисель-концентрат | D56: 17.50 | E56: 17.50
B57: Сахар | D57: 4.00 | E57: 4.00
B58: Вода | D58: 150.00 | E58: 150.00
A59: Хлеб сельский | C59: 30 | D59: 30 | E59: 30
A60: Итого: | C60: 532.50
B61: ПОЛДНИК
A62: Булочка Домашняя | C62: 40 | F62: №258 Партнер г. Уфа 2014
B63: Мука пшеничная | D63: 27.00 | E63: 27.00
B64: Сахар | D64: 5.60 | E64: 5.60
B65: Вода | D65: 11.20 | E65: 11.20
B66: Масло растительное | D66: 5.60 | E66: 5.60
B67: Дрожжи сухие | D67: 0.16 | E67: 0.16
B68: Соль | D68: 0.20 | E68: 0.20
B69: Яйцо | D69: 0.80 | E69: 0.80
B70: Масса полуфабриката | E70: 48.40
B71: Масло растительное | D71: 0.10 | E71: 0.10
A72: Катык | C72: 100 | F72: №401Дели2010
B73: катык | D73: 103.5 | E73: 100
A74: Голубцы ленивые в сметнно-томатном соусе | C74: 140/15 | F74: № 160 Пермь 2001 г
B75: Капуста свежая | D75: 112.5 | E75: 90
B76: Фарш из говядины | D76: 49 | E76: 49
B77: Крупа рисовая | D77: 6.5 | E77: 6.5
B78: Лук репчатый | D78: 14.4 | E78: 12.096
B79: Масло сливочное | D79: 3.7 | E79: 3.7
B80: Соль | D80: 1 | E80: 1
B81: Яйцо | D81: 6.5 | E81: 6.5
B82: Мука пшеничная | D82: 0.8 | E82: 0.8
B83: Вода | D83: 13.5 | E83: 13.5
B84: Сметана | D84: 11.6 | E84: 11.6
B85: Томат-паста | D85: 0.8 | E85: 0.8
B86: Морковь | D86: 1 | E86: 0.8
B87: Лук репчатый | D87: 0.36 | E87: 0.3024
B88: Сахар | D88: 0.2 | E88: 0.2
B89: Масло сливочное | D89: 1 | E89: 1
A90: Напиток из урюка | C90: 150 | F90: ТТК №68
B91: Урюк | D91: 12.75 | E91: 12.5
B92: Сахар | D92: 4 | E92: 4
B93: Вода | D93: 150 | E93: 150
A94: Хлеб пшеничный 1с | C94: 20 | D94: 20 | E94: 20
A95: Итого: | C95: 430.00
A96: ВСЕГО: | C96: =C25+C28+C60+C95 -> 1434.50
A98: День 2- ой
A99: Прием пищи | C99: Выход блюда | D99: Кол - во | E99: Кол - во | F99: № рецептуры
A100: Наименование блюд | D100: (в гр ) | E100: (в гр )
D101: брутто | E101: нетто
B102: ЗАВТРАК
A103: Каша манная молочная с маслом | C103: 150/3 | F103: ТТК №4
B104: Крупа манная | D104: 15 | E104: 15
B105: Молоко | D105: 75 | E105: 75
B106: Сахар | D106: 2 | E106: 2
B107: Соль | D107: 0.8 | E107: 0.8
B108: Масло сливочное | D108: 3 | E108: 3
B109: Вода | D109: 57 | E109: 57
A110: Какао с молоком | C110: 160 | F110: №272 Парнер г. Уфа 2014
B111: Какао-порошок | D111: 1.3 | E111: 1.3
B112: Сахар | D112: 7 | E112: 7
B113: Молоко | D113: 80 | E113: 80
B114: Вода | D114: 90 | E114: 90
A115: Бутерброд с сыром, маслом | C115: 25/5/3 | F115: №3Дели2010
B116: Батон нарезной | D116: 25 | E116: 25
B117: Сыр | D117: 5.1 | E117: 5
B118: Масло сливочное | D118: 3 | E118: 3
A119: Итого: | C119: 346
A120: Фрукты свежие | C120: 85 | D120: 96.9 | E120: 85 | F120: №368 Дели 2010
A122: Итого: | C122: 85
C123: 471
B124: ОБЕД
A125: Салат пёстрый | C125: 30 | F125: №31 справ.М.2003г
B126: Яблоки | D126: 9.12 | E126: 8.00
B127: Свекла | D127: 27.20 | E127: 20.00
B128: Масло растительное | D128: 1.50 | E128: 1.50
B129: Сахар | D129: 1.00 | E129: 1.00
A130: Суп крестьянский с курицей, со сметаной | C130: 150/10/5 | F130: №62 "Партнер"2014
B131: Цыплята | D131: 22.61 | E131: 14.70
B132: Крупа пшенная | D132: 6.00 | E132: 6.00
B133: Морковь | D133: 7.50 | E133: 6.00
B134: Картофель | D134: 21.45 | E134: 15.00
B135: Лук репчатый | D135: 7.14 | E135: 6.00
B136: Масло растительное | D136: 3.00 | E136: 3.00
B137: Соль | D137: 1.00 | E137: 1.00
B138: Вода | D138: 132.00 | E138: 132.00
B139: Сметана | D139: 5.00 | E139: 5.00
B140: Капуста свежая | D140: 22.50 | E140: 18.00
A141: Ёжики мясные паровые | C141: 50 | F141: ТТК №1Д
B142: Фарш из говядины | D142: 38 | E142: 38.0
B143: Крупа рисовая | D143: 5 | E143: 5
B144: Вода | D144: 7 | E144: 7.0
B145: Соль | D145: 1 | E145: 1.0
B146: Масло растительное | D146: 2 | E146: 2.0
B147: Лук репчатый | D147: 5.95 | E147: 5.00
A148: Пюре Картофельное | C148: 110 | F148: №137 Партнер 2014
B149: Картофель | D149: 135.03 | E149: 94.43
B150: Молоко | D150: 17.38 | E150: 16.50
B151: Масло сливочное | D151: 3.00 | E151: 3.00
B152: Соль | D152: 0.90 | E152: 0.90
A153: Компот из свежих яблок | C153: 150 | F153: № 390 Дели 2016
B154: Яблоки | D154: 34 | E154: 30
B155: Сахар | D155: 4 | E155: 4
B156: Вода | D156: 130 | E156: 130
A157: Хлеб сельский | C157: 30 | D157: 30 | E157: 30
A158: Итого: | C158: 535.00
B159: ПОЛДНИК
A160: Кондитерские изделия | C160: 10
A161: печенье | D161: 10.00 | E161: 10.00
A162: Молоко кипяченое | C162: 100 | F162: №419 Дели2016
B163: молоко | D163: 105.36 | E163: 100.00
A164: Суфле из творога с молоком сгущенным | C164: 100/10 | F164: ТТК №567
B165: Творог | D165: 72.85 | E165: 71.43
B166: Крупа манная | D166: 7.70 | E166: 7.70
B167: Яйцо | D167: 4.70 | E167: 4.70
B168: Сахар | D168: 7.70 | E168: 7.70
B169: Молоко | D169: 14.20 | E169: 14.20
B170: соль | D170: 0.10 | E170: 0.10
B171: Сметана | D171: 9.50 | E171: 9.50
B172: Масло растительное | D172: 0.40 | E172: 0.40
B173: молоко сгущенное | D173: 10.00 | E173: 10.00
A174: Чай с сахаром и лимоном | C174: 150/4/4 | F174: №393Дели2010
B175: Заварка | D175: 0.3 | E175: 0.3
B176: Сахар | D176: 4 | E176: 4
B177: лимон | D177: 4.1 | E177: 4
B178: Вода | D178: 150.0 | E178: 150.0
A179: Хлеб пшеничный 1с | C179: 20 | D179: 20 | E179: 20
A180: Итого: | C180: 398
A181: ВСЕГО: | C181: =C119+C122+C158+C180 -> 1364.00
A183: День 3 - ий
A184: Прием пищи | C184: Выход блюда | D184: Кол - во | E184: Кол - во | F184: № рецептуры
A185: Наименование блюд | D185: (в гр ) | E185: (в гр )
D186: брутто | E186: нетто
B187: ЗАВТРАК
A188: Каша геркулесовая молочная с маслом | C188: 150/3 | F188: ТТК №5
B189: Крупа геркулесовая | D189: 19 | E189: 19
B190: Молоко | D190: 75.00 | E190: 75.00
B191: Сахар | D191: 2.00 | E191: 2.00
B192: Вода | D192: 57.00 | E192: 57.00
B193: Соль | D193: 0.8 | E193: 0.8
B194: Масло сливочное | D194: 3 | E194: 3
A195: Чай с молоком,сахаром | C195: 160/4 | F195: №394Дели2010
B196: Заварка | D196: 0.2 | E196: 0.2
B197: Сахар | D197: 4 | E197: 4
B198: Молоко | D198: 42 | E198: 42
B199: Вода | D199: 115 | E199: 115
A200: Бутерброд с маслом сливочным | C200: 25/5 | F200: №1 Дели2010
B201: Батон нарезной | D201: 25 | E201: 25
B202: Масло сливочное | D202: 5 | E202: 5
A203: Итого: | C203: 347
A204: Сок | C204: 125 | D204: 125 | E204: 125 | F204: №418Дели2016
A206: Итого: | C206: =SUM(C204:C204) -> 125
... 677 more rows

Sheet раскл 3-7 н
C2: Меню-раскладка к примерному 10-дневному меню
C3: для организации питания детей в дошкольных образовательных учреждениях
C4: от 3-7 лет
A5: День 1 - ый
A6: Прием пищи | C6: Выход блюда | D6: Кол - во | E6: Кол - во | F6: № рецептуры
A7: Наименование блюд | D7: (в гр ) | E7: (в гр )
D8: брутто | E8: нетто
B9: ЗАВТРАК
A10: Каша "Дружба" молочная с маслом | C10: 200/3 | F10: ТТК №7
B11: Крупа рисовая | D11: 15.00 | E11: 15.00
B12: Крупа пшенная | D12: 11.00 | E12: 11.00
B13: Молоко | D13: 86.00 | E13: 86.00
B14: Вода | D14: 86.00 | E14: 86.00
B15: Сахар | D15: 1.00 | E15: 1.00
B16: Соль | D16: 1.00 | E16: 1.00
B17: Масло сливочное | D17: 3.00 | E17: 3.00
A18: Чай с сахаром | C18: 180/5 | F18: № 411 Дели2016
B19: Заварка | D19: 0.3 | E19: 0.3
B20: сахар | D20: 5 | E20: 5
B21: Вода | D21: 180 | E21: 180
A22: Бутерброд с маслом сливочным | C22: 25/5 | F22: №1 Дели2010
B23: Батон нарезной | D23: 25.00 | E23: 25.00
B24: Масло сливочное | D24: 5.00 | E24: 5.00
A25: Итого: | C25: 418
A26: Сок | C26: 125 | D26: 125 | E26: 125 | F26: №399 Сб.Дели2010
A28: Итого: | C28: =SUM(C26:C26) -> 125
C29: 543
B30: ОБЕД
A31: Икра кабачковая | C31: 50 | F31: № 57-2016
B32: Икра кабачковая | D32: 52.50 | E32: 50.00
A33: Суп вермишелевый с картофелем и курицей | C33: 200/10 | F33: №88 Дели 2016
B34: цыплята | D34: 22.57 | E34: 14.6705
B35: Картофель | D35: 85.80 | E35: 60.00
B36: Морковь | D36: 10.64 | E36: 8.00
B37: Лук репчатый | D37: 9.52 | E37: 8.00
B38: Вермишель | D38: 8.00 | E38: 8.00
B39: Масло растительное | D39: 2.40 | E39: 2.40
B40: Соль | D40: 1.00 | E40: 1.00
B41: Вода | D41: 152.00 | E41: 152.00
A42: Тефтели из говядины с соусом томатным | C42: 70/10 | F42: ТТК № 1152 от 09.10.2020 и №364 С-Петербург 2008
B43: фарш из говядины | D43: 48 | E43: 48
B44: Хлеб пшеничный 1с | D44: 6 | E44: 6
B45: Вода | D45: 6 | E45: 6
B46: Лук репчатый | D46: 14.28 | E46: 11.99
B47: Крупа манная | D47: 3 | E47: 3
B48: Соль | D48: 0.5 | E48: 0.5
B49: масса полуфабриката | E49: 74
B50: Масло растительное | D50: 2 | E50: 2
B51: вода | D51: 9.0 | E51: 9.0
B52: Масло растительное | D52: 0.4 | E52: 0.4
B53: Мука пшеничная | D53: 0.4 | E53: 0.4
B54: Морковь | D54: 0.79 | E54: 0.60
B55: Лук репчатый | D55: 0.24 | E55: 0.20
B56: Томат-паста | D56: 1.0 | E56: 1.0
B57: Масло растительное | D57: 0.2 | E57: 0.2
B58: соль | D58: 0.1 | E58: 0.1
B59: сахар | D59: 0.2 | E59: 0.2
A60: Каша гречневая вязкая | C60: 130/3 | F60: №182,Дели 2016
B61: Крупа гречневая | D61: 32.50 | E61: 32.50
B62: Вода | D62: 108.00 | E62: 108.00
B63: Масло сливочное | D63: 3.00 | E63: 3.00
B64: Соль | D64: 0.50 | E64: 0.50
A65: Кисель | C65: 180 | F65: №284Партнер2014
B66: Кисель-концентрат | D66: 21.60 | E66: 21.60
B67: вода | D67: 180.00 | E67: 180.00
B68: Сахар | D68: 5.00 | E68: 5.00
A69: Хлеб сельский | C69: 37.5 | D69: 37.50 | E69: 37.50
A70: Итого: | C70: 690.5
B71: ПОЛДНИК
A72: Булочка Домашняя | C72: 50 | F72: №258 Партнер г. Уфа 2014
B73: Мука пшеничная | D73: 34.00 | E73: 34.00
B74: Сахар | D74: 7.00 | E74: 7.00
B75: вода | D75: 14.00 | E75: 14.00
B76: Масло растительное | D76: 7.00 | E76: 7.00
B77: Дрожжи сухие | D77: 0.20 | E77: 0.20
B78: Соль | D78: 0.30 | E78: 0.30
B79: Яйцо | D79: 1.00 | E79: 1.00
B80: Масса полуфабриката | E80: 60.50
B81: Масло растительное | D81: 0.20 | E81: 0.20
A82: Катык | C82: 110 | F82: №401Дели2010
B83: катык | D83: 114.00 | E83: 110.00
A84: Голубцы ленивые в сметнно-томатном соусе | C84: 150/20 | F84: № 160 Пермь 2001 г
B85: Капуста свежая | D85: 120 | E85: 96
B86: фарш из говядины | D86: 52 | E86: 52
B87: Крупа рисовая | D87: 7.00 | E87: 7.00
B88: Лук репчатый | D88: 15.48 | E88: 13.0032
B89: Масло сливочное | D89: 5.30 | E89: 5.30
B90: Соль | D90: 1.50 | E90: 1.50
B91: Яйцо | D91: 7 | E91: 7
B92: Мука пшеничная | D92: 1 | E92: 1
B93: Вода | D93: 18 | E93: 18
B94: Сметана | D94: 15.5 | E94: 15.5
B95: Томат-паста | D95: 1 | E95: 1
B96: Морковь | D96: 1.33 | E96: 1.00
B97: Лук репчатый | D97: 0.48 | E97: 0.4032
B98: Сахар | D98: 0.2 | E98: 0.2
A99: Напиток из урюка | C99: 180 | F99: ТТК №68
B100: урюк | D100: 15.30 | E100: 15.00
B101: вода | D101: 180.00 | E101: 180.00
B102: Сахар | D102: 5.00 | E102: 5.00
A103: Хлеб пшеничный 1с | C103: 20 | D103: 20.00 | E103: 20.00
A104: Итого: | C104: 505
A105: ВСЕГО: | C105: =C25+C28+C70+C104 -> 1738.5
A107: День 2- ой
A108: Прием пищи | C108: Выход блюда | D108: Кол - во | E108: Кол - во | F108: № рецептуры
A109: Наименование блюд | D109: (в гр ) | E109: (в гр )
D110: брутто | E110: нетто
B111: ЗАВТРАК
A112: Каша манная молочная с маслом | C112: 200/3 | F112: ТТК №4
B113: Крупа манная | D113: 20.00 | E113: 20.00
B114: Молоко | D114: 100.00 | E114: 100.00
B115: вода | D115: 76.00 | E115: 76.00
B116: Сахар | D116: 3.00 | E116: 3.00
B117: Соль | D117: 1.50 | E117: 1.50
B118: Масло сливочное | D118: 3.00 | E118: 3.00
A119: Какао с молоком | C119: 180 | F119: №272 Парнер г. Уфа 2014
B120: Какао-порошок | D120: 1.50 | E120: 1.50
B121: Сахар | D121: 8.00 | E121: 8.00
B122: Молоко | D122: 90.00 | E122: 90.00
B123: Вода | D123: 100.00 | E123: 100.00
A124: Бутерброд с сыром, маслом | C124: 25/7/3 | F124: №3 Дели2010
B125: Батон нарезной | D125: 25.00 | E125: 25.00
B126: Сыр | D126: 7.14 | E126: 7.00
B127: Масло сливочное | D127: 3.00 | E127: 3.00
A128: Итого: | C128: 418
A129: Фрукты свежие | C129: 100 | D129: 114 | E129: 100 | F129: № 386 Дели 2016
A131: Итого: | C131: 100
C132: 543
B133: ОБЕД
A134: Салат пёстрый | C134: 50 | F134: №31, Справочник Москва,2003
B135: Яблоки | D135: 15.20 | E135: 13.30
B136: Свекла | D136: 45.29 | E136: 33.30
B137: Масло растительное | D137: 2.50 | E137: 2.50
B138: Сахар | D138: 1.70 | E138: 1.70
A139: Суп крестьянский с курицей, со сметаной | C139: 200/15/5 | F139: №62 "Партнер"2014
B140: Цыплята | D140: 33.85 | E140: 22.00
B141: Крупа пшенная | D141: 8.00 | E141: 8.00
B142: Морковь | D142: 10.00 | E142: 8.00
B143: Картофель | D143: 28.60 | E143: 20.00
B144: Лук репчатый | D144: 9.52 | E144: 8.00
B145: Масло растительное | D145: 4.00 | E145: 4.00
B146: Соль | D146: 1.20 | E146: 1.20
B147: Вода | D147: 176.00 | E147: 176.00
B148: Сметана | D148: 5.00 | E148: 5.00
B149: Капуста свежая | D149: 30.00 | E149: 24.00
A150: Ёжики мясные паровые | C150: 70 | F150: ТТК №1Д
B151: Фарш из говядины | D151: 53.2 | E151: 53.2
B152: Крупа рисовая | D152: 7 | E152: 7.0
B153: Вода | D153: 9.8 | E153: 9.8
B154: Соль | D154: 1.4 | E154: 1.4
B155: Масло растительное | D155: 2.8 | E155: 2.8
B156: Лук репчатый | D156: 8.33 | E156: 6.999
A157: Пюре Картофельное | C157: 130 | F157: №137 Партнер 2014
B158: Картофель | D158: 159.59 | E158: 111.60
B159: Молоко | D159: 20.47 | E159: 19.50
B160: Масло сливочное | D160: 3.00 | E160: 3.00
B161: Соль | D161: 1.00 | E161: 1.00
A162: Компот из свежих яблок | C162: 180 | F162: № 390 Дели 2016
B163: яблоки | D163: 40.8 | E163: 36.0
B164: вода | D164: 155.0 | E164: 155.0
B165: Сахар | D165: 5.0 | E165: 5.0
A166: Хлеб сельский | C166: 37.5 | D166: 37.50 | E166: 37.50
A167: Итого: | C167: 683.5
B168: ПОЛДНИК
A169: Кондитерские изделия | C169: 10
A170: печенье | D170: 10.00 | E170: 10.00
A171: Молоко кипяченое | C171: 110 | F171: №419 Дели2016
B172: молоко | D172: 115.90 | E172: 110.00
A173: Суфле из творога с молоком сгущенным | C173: 150/20 | F173: ТТК №567
B174: Творог | D174: 109.28 | E174: 107.14
B175: крупа манная | D175: 11.40 | E175: 11.40
B176: Яйцо | D176: 7.14 | E176: 7.14
B177: Сахар | D177: 11.40 | E177: 11.40
B178: Молоко | D178: 21.40 | E178: 21.40
B179: Сметана | D179: 14.28 | E179: 14.28
B180: соль | D180: 0.30 | E180: 0.30
B181: Масло растительное | D181: 0.60 | E181: 0.60
B182: молоко сгущенное | D182: 20.00 | E182: 20.00
A183: Чай с сахаром и лимоном | C183: 180/5/5 | F183: №393Дели2010
B184: Заварка | D184: 0.35 | E184: 0.35
B185: Сахар | D185: 5 | E185: 5
B186: лимон | D186: 5.1 | E186: 5
B187: Вода | D187: 180.0 | E187: 180.0
A188: Хлеб пшеничный 1с | C188: 20 | D188: 20.00 | E188: 20.00
A189: Итого: | C189: 500
A190: ВСЕГО: | C190: =C128+C131+C167+C189 -> 1701.5
A192: День 3 - ий
A193: Прием пищи | C193: Выход блюда | D193: Кол - во | E193: Кол - во | F193: № рецептуры
A194: Наименование блюд | D194: (в гр ) | E194: (в гр )
D195: брутто | E195: нетто
B196: ЗАВТРАК
A197: Каша Геркулесовая молочная с маслом | C197: 200/3 | F197: ТТК №5
B198: Крупа Геркулесовая | D198: 25.00 | E198: 25.00
B199: Молоко | D199: 100.00 | E199: 100.00
B200: вода | D200: 76.00 | E200: 76.00
B201: Сахар | D201: 1.00 | E201: 1.00
B202: Соль | D202: 1.00 | E202: 1.00
B203: Масло сливочное | D203: 3.00 | E203: 3.00
A204: Чай с молоком,сахаром | C204: 180/5 | F204: № 394 Дели2010
B205: Заварка | D205: 0.3 | E205: 0.3
... 2126 more rows
